{"text_format":"1","workbook":"xlsx","n_sheets":4,"sheets":["Situation familiale","Situation professionnelle Mr","Situation professionnelle Mme","Calcul Prime activité"],"not_rendered":{"charts":0,"images":0,"macros":1,"external_links":0,"defined_names":0,"comments":3,"pivot_tables":0},"unopened":[],"bounds":{"document_bytes":16777216,"sheet_cells":100000,"rows_first":2000,"rows_last":500,"rows_between":2000,"halvings":0,"cell_chars":16384,"cell_head_chars":4096},"cells_cut":0,"cells_raw":0,"read":"whole","date_system":"1900"}

{"sheet":"Situation familiale","index":0,"n_rows":20,"n_cols":15,"rows_kept":20,"cut":false,"hidden":false,"merged":[[14,1,16,2],[10,8,10,9],[2,8,2,10],[12,8,12,9],[2,1,2,6],[10,1,10,6],[5,4,7,6]]}
[]
[]
[null,"Situation familiale",null,null,null,null,null,null,"Montants Forfaitaires - Situation Familiale"]
[null,null,null,null,null,null,null,null,"Nbre d'enfants ou de personnes à charge","Vous vivez seul (*)","Vous vivez en couple",null,null,"seul"]
[null,"Vous vivez:","seul",null,null,null,null,null,0,524.67999999999995,787.02,null,null,"en couple"]
[null,null,null,null,{"$f":"IF(D7=\"oui\",\"Le montant de la PA peut être majoré pour un parent isolé, suivant conditions particulières. Veuillez vous rapprocher de votre CAF.\",\"\")","v":""},null,null,null,1,787.02,944.42]
[null,"Vous attendez un enfant ",null,"non",null,null,null,null,2,944.42,1101.82]
[null,null,null,null,null,null,null,null,"Par enfant ou personne en plus",209.87,209.87]
[null,"Nb de personnes à charge ",null,0,null,null,null,null,"(*) ces montants peuvent être majorés, sous certaines conditions, pour les personnes seules"]
[null,null,null,null,null,null,null,null,"assurant la charge d'un enfant né ou à naitre.",null,null,null,null,0,"oui"]
[null,"Hébergement",null,null,null,null,null,null,"Montant forfaitaire correspondant à votre situation",null,{"$f":"IF(AND(C5=\"seul\",D9=0),J5,IF(AND(C5=\"en couple\",D9=0),K5,IF(AND(C5=\"seul\",D9=1),J6,IF(AND(C5=\"en couple\",D9=1),K6,IF(AND(C5=\"seul\",D9=2),J7,IF(AND(C5=\"en couple\",D9=2),K7,IF(AND(C5=\"seul\",D9>=3),J7+((D9-2)*J8),IF(AND(C5=\"en couple\",D9>=3),K7+((D9-2)*K8),0))))))))","v":524.67999999999995},null,null,1,"non"]
[null,null,null,null,null,null,null,null,null,null,null,null,null,2]
[null,"Vous êtes propriétaire de votre logement ou logés gratuitement : ",null,null,null,null,"oui",null,"Forfait logement",null,null,null,null,3]
[null,null,null,null,null,null,null,null,"Personne seule",62.9,null,null,null,4]
[null,"Aides au logement versées par votre CAF durant les 3 derniers mois",null,"Mois 1",null,null,null,null,"Deux personnes",125.8,null,null,null,5]
[null,null,null,"Mois 2",null,null,null,null,"Trois personnes ou plus",155.68]
[null,null,null,"Mois 3",null,null,null,null,null,null,null,null,null,null,{"$f":"SUM(E15:E17)","v":0}]
[null,null,null,null,null,null,null,null,"Forfait logement retenu dans votre cas",{"$f":"IF(AND(AND(C5=\"seul\",D9>1,G13=\"oui\")),J16,IF(AND(AND(C5=\"seul\",G13=\"oui\",D9=1)),J15,IF(AND(AND(C5=\"seul\",O17>0,D9=1)),J15,IF(AND(AND(C5=\"en couple\",G13=\"oui\",D9>=1)),J16,IF(AND(G13=\"oui\",C5=\"seul\"),J14,IF(AND(G13=\"oui\",C5=\"en couple\"),J15,IF(AND(G13=\"non\",O17=0),0,IF(AND(C5=\"seul\",D9=0),J14,IF(AND(C5=\"en couple\",D9=0),J15,IF(AND(C5=\"seul\",D9=1),J15,IF(AND(C5=\"en couple\",D9>=1),J16,IF(AND(C5=\"seul\",D9>1),J16,0))))))))))))","v":62.9}]
[]
[null,"©UPSME - Juin 2016"]

{"sheet":"Situation professionnelle Mr","index":1,"n_rows":25,"n_cols":16,"rows_kept":25,"cut":false,"hidden":false,"merged":[[3,5,4,5],[15,2,15,3],[15,4,15,5],[3,6,4,7],[11,9,11,10],[14,2,14,3],[14,4,14,5],[14,6,14,7],[6,9,6,10],[6,1,6,7],[7,2,7,7],[8,2,8,3],[8,4,8,5],[8,6,8,7],[4,1,4,2],[19,8,19,9],[20,2,20,3],[21,2,21,3],[22,2,22,3],[20,4,20,5],[20,8,20,9],[21,8,21,9],[22,8,22,9],[21,4,21,5],[22,4,22,5],[20,6,20,7],[21,6,21,7],[22,6,22,7],[1,1,1,14],[3,9,4,14],[19,12,19,14],[6,12,7,14],[8,12,8,13],[11,12,11,14],[12,13,12,14],[13,13,13,14],[14,13,14,14],[15,6,15,7],[19,2,19,3],[19,4,19,5],[19,6,19,7],[18,1,18,9],[16,1,16,3],[16,4,16,7]]}
[]
[null,"Situation professionnelle - Monsieur"]
[null,"1°) Indiquez si votre activité principale exercée relève : ",null,null,"2)° Indiquez votre dernier chiffre d'affaires connu :"]
[null,null,null,null,null,2015,35000,null,null,{"$f":"IF(AND(B5=\"des prestations de services\",G4>32900),\"Votre CA ne vous permet pas de continuer l'étude de vos droits à la prime d'activité\",IF(AND(B5=\"des activités libérales RSI et CIPAV\",G4>32900),\"Votre CA ne vous permet pas de continuer l'étude de vos droits à la prime d'activité\",IF(AND(B5=\"des activités de vente\",G4>82200),\"Votre CA ne vous permet pas de continuer l'étude de vos droits à la prime d'activité\",\"Vous pouvez continuez l'étude de vos droits à la prime d'activité\")))","v":"Votre CA ne vous permet pas de continuer l'étude de vos droits à la prime d'activité"},{"$f":"IF(AND(G3=\"des prestations de services\",L2>32900),\"Votre CA ne vous permet pas de continuer l'étude de vos droits à la prime d'activité\",IF(AND(G3=\"des activités libérales RSI et CIPAV\",L2>32900),\"Votre CA ne vous permet pas de continuer l'étude de vos droits à la prime d'activité\",IF(AND(G3=\"des activités de vente\",L2>82200),\"Votre CA ne vous permet pas de continuer l'étude de vos droits à la prime d'activité\",\"Vous pouvez continuez l'étude de vos droits à la prime d'activité\")))","v":"Vous pouvez continuez l'étude de vos droits à la prime d'activité"},"Vous pouvez continuez l'étude de vos droits à la prime d'activité","Vous pouvez continuez l'étude de vos droits à la prime d'activité","Vous pouvez continuez l'étude de vos droits à la prime d'activité","Vous pouvez continuez l'étude de vos droits à la prime d'activité","des prestations de services"]
[null,"des prestations de services",null,null,null,null,null,null,null,{"$f":"IF(AND(F4=\"des prestations de services\",K3>32900),\"Votre CA ne vous permet pas de continuer l'étude de vos droits à la prime d'activité\",IF(AND(F4=\"des activités libérales RSI et CIPAV\",K3>32900),\"Votre CA ne vous permet pas de continuer l'étude de vos droits à la prime d'activité\",IF(AND(F4=\"des activités de vente\",K3>82200),\"Votre CA ne vous permet pas de continuer l'étude de vos droits à la prime d'activité\",\"Vous pouvez continuez l'étude de vos droits à la prime d'activité\")))","v":"Vous pouvez continuez l'étude de vos droits à la prime d'activité"},"Vous pouvez continuez l'étude de vos droits à la prime d'activité","Vous pouvez continuez l'étude de vos droits à la prime d'activité","Vous pouvez continuez l'étude de vos droits à la prime d'activité","Vous pouvez continuez l'étude de vos droits à la prime d'activité","Vous pouvez continuez l'étude de vos droits à la prime d'activité","des activités de vente"]
[null,null,null,null,null,null,null,null,null,null,null,null,null,null,null,"des activités libérales RSI et CIPAV"]
[null,"Revenus micro-entrepreneur",null,null,null,null,null,null,null,"Revenus salariés nets",null,null,"Revenus de placement ou du patrimoine"]
[null,null,"Ventilation du chiffre d'affaires par activité",null,null,null,null,null,null,"Mois 1",0]
[null,null,"Ventes (BIC - 71%)",null,"Services (BIC - 50%)",null,"Libéral (BNC - 34%)",null,null,"Mois 2",0,null,2014,null,0]
[null,null,"CA","Revenus","CA","Revenus","CA","Revenus",null,"Mois 3",0]
[null,"Mois 1",null,{"$f":"C11-(C11*71%)","v":0},null,{"$f":"E11-(E11*50%)","v":0},null,{"$f":"G11-(G11*34%)","v":0}]
[null,"Mois 2",null,{"$f":"C12-(C12*71%)","v":0},null,{"$f":"E12-(E12*50%)","v":0},null,{"$f":"G12-(G12*34%)","v":0},null,"Revenus de remplacement",null,null,"Prestations sociales",null,null,2015]
[null,"Mois 3",null,{"$f":"C13-(C13*71%)","v":0},null,0,null,{"$f":"G13-(G13*34%)","v":0},null,"Mois 1",0,null,"Mois 1",0,null,2016]
[null,"Total",{"$f":"SUM(C11:C13)","v":0},{"$f":"SUM(D11:D13)","v":0},0,0,{"$f":"SUM(G11:G13)","v":0},0,null,"Mois 2",0,null,"Mois 2",0,null,2017]
[null,"CA moyen du trimestre",{"$f":"C14/3","v":0},null,{"$f":"E14/3","v":0},null,{"$f":"G14/3","v":0},null,null,"Mois 3",0,null,"Mois 3",0]
[null,"Revenus moyens trimestre",{"$f":"D14/3","v":0},null,{"$f":"F14/3","v":0},null,{"$f":"H14/3","v":0}]
[null,"Revenu non-salarié total moyen du trimestre",null,null,{"$f":"C16+E16+G16","v":0}]
[]
[null,"Calcul de la bonification sur les revenus d'activités salariée et non salariée"]
[null,null,"Non salariés",null,"Salariés",null,"Total",null,"Bonification"]
[null,"Mois 1",{"$f":"E17","v":0},null,{"$f":"K8","v":0},null,{"$f":"SUM(C21:F21)","v":0},null,{"$f":"IF(G21<570.53,0,IF(G21>=918.65,67.06,IF(AND(G21>570.53,G21<918.65),((G21-570.53)/(918.65-570.53))*67.06,0)))","v":0}]
[null,"Mois 2",{"$f":"E17","v":0},null,{"$f":"K9","v":0},null,{"$f":"SUM(C22:F22)","v":0},null,{"$f":"IF(G22<570.53,0,IF(G22>=918.65,67.06,IF(AND(G22>570.53,G22<918.65),((G22-570.53)/(918.65-570.53))*67.06,0)))","v":0}]
[null,"Mois 3",{"$f":"E17","v":0},null,{"$f":"K10","v":0},null,0,null,0]
[]
[null,"© UPSME - Juin 2016"]

{"sheet":"Situation professionnelle Mme","index":2,"n_rows":25,"n_cols":16,"rows_kept":25,"cut":false,"hidden":false,"merged":[[21,2,21,3],[21,4,21,5],[21,6,21,7],[21,8,21,9],[22,2,22,3],[22,4,22,5],[22,6,22,7],[22,8,22,9],[19,8,19,9],[20,2,20,3],[20,4,20,5],[20,6,20,7],[20,8,20,9],[16,1,16,3],[16,4,16,7],[19,2,19,3],[19,4,19,5],[19,6,19,7],[12,13,12,14],[13,13,13,14],[14,13,14,14],[16,11,22,12],[7,2,7,7],[18,1,18,9],[8,2,8,3],[8,4,8,5],[8,6,8,7],[11,9,11,10],[14,2,14,3],[14,4,14,5],[14,6,14,7],[15,2,15,3],[15,4,15,5],[15,6,15,7],[1,1,1,14],[3,9,4,14],[6,12,7,14],[8,12,8,13],[11,12,11,14],[3,5,4,5],[3,6,4,7],[6,1,6,7],[6,9,6,10],[4,1,4,2]]}
[]
[null,"Situation professionnelle - Madame"]
[null,"1°) Indiquez si votre activité principale exercée relève : ",null,null,"2)° Indiquez votre dernier chiffre d'affaires connu :"]
[null,null,null,null,null,2015,0,null,null,{"$f":"IF(AND(B5=\"des prestations de services\",G4>32900),\"Votre CA ne vous permet pas de continuer l'étude de vos droits à la prime d'activité\",IF(AND(B5=\"des activités libérales RSI et CIPAV\",G4>32900),\"Votre CA ne vous permet pas de continuer l'étude de vos droits à la prime d'activité\",IF(AND(B5=\"des activités de vente\",G4>82200),\"Votre CA ne vous permet pas de continuer l'étude de vos droits à la prime d'activité\",\"Vous pouvez continuez l'étude de vos droits à la prime d'activité\")))","v":"Vous pouvez continuez l'étude de vos droits à la prime d'activité"},{"$f":"IF(AND(G3=\"des prestations de services\",L2>32900),\"Votre CA ne vous permet pas de continuer l'étude de vos droits à la prime d'activité\",IF(AND(G3=\"des activités libérales RSI et CIPAV\",L2>32900),\"Votre CA ne vous permet pas de continuer l'étude de vos droits à la prime d'activité\",IF(AND(G3=\"des activités de vente\",L2>82200),\"Votre CA ne vous permet pas de continuer l'étude de vos droits à la prime d'activité\",\"Vous pouvez continuez l'étude de vos droits à la prime d'activité\")))","v":"Vous pouvez continuez l'étude de vos droits à la prime d'activité"},"Vous pouvez continuez l'étude de vos droits à la prime d'activité","Vous pouvez continuez l'étude de vos droits à la prime d'activité","Vous pouvez continuez l'étude de vos droits à la prime d'activité","Vous pouvez continuez l'étude de vos droits à la prime d'activité","des prestations de services"]
[null,"des prestations de services",null,null,null,null,null,null,null,{"$f":"IF(AND(F4=\"des prestations de services\",K3>32900),\"Votre CA ne vous permet pas de continuer l'étude de vos droits à la prime d'activité\",IF(AND(F4=\"des activités libérales RSI et CIPAV\",K3>32900),\"Votre CA ne vous permet pas de continuer l'étude de vos droits à la prime d'activité\",IF(AND(F4=\"des activités de vente\",K3>82200),\"Votre CA ne vous permet pas de continuer l'étude de vos droits à la prime d'activité\",\"Vous pouvez continuez l'étude de vos droits à la prime d'activité\")))","v":"Vous pouvez continuez l'étude de vos droits à la prime d'activité"},"Vous pouvez continuez l'étude de vos droits à la prime d'activité","Vous pouvez continuez l'étude de vos droits à la prime d'activité","Vous pouvez continuez l'étude de vos droits à la prime d'activité","Vous pouvez continuez l'étude de vos droits à la prime d'activité","Vous pouvez continuez l'étude de vos droits à la prime d'activité","des activités de vente"]
[null,null,null,null,null,null,null,null,null,null,null,null,null,null,null,"des activités libérales RSI et CIPAV"]
[null,"Revenus micro-entrepreneur",null,null,null,null,null,null,null,"Revenus salariés nets",null,null,"Revenus de placement ou du patrimoine"]
[null,null,"Ventilation du chiffre d'affaires par activité",null,null,null,null,null,null,"Mois 1",0]
[null,null,"Ventes (BIC - 71%)",null,"Services (BIC - 50%)",null,"Libéral (BNC - 34%)",null,null,"Mois 2",0,null,2014,null,0]
[null,null,"CA","Revenus","CA","Revenus","CA","Revenus",null,"Mois 3",0]
[null,"Mois 1",null,{"$f":"C11-(C11*71%)","v":0},null,{"$f":"E11-(E11*50%)","v":0},null,{"$f":"G11-(G11*34%)","v":0}]
[null,"Mois 2",null,{"$f":"C12-(C12*71%)","v":0},null,{"$f":"E12-(E12*50%)","v":0},null,{"$f":"G12-(G12*34%)","v":0},null,"Revenus de remplacement",null,null,"Prestations sociales",null,null,2015]
[null,"Mois 3",null,0,null,0,null,0,null,"Mois 1",0,null,"Mois 1",0,null,2016]
[null,"Total",{"$f":"SUM(C11:C13)","v":0},0,0,0,0,0,null,"Mois 2",0,null,"Mois 2",0,null,2017]
[null,"CA moyen du trimestre",{"$f":"C14/3","v":0},null,{"$f":"E14/3","v":0},null,{"$f":"G14/3","v":0},null,null,"Mois 3",0,null,"Mois 3",0]
[null,"Revenus moyens trimestre",{"$f":"D14/3","v":0},null,{"$f":"F14/3","v":0},null,{"$f":"H14/3","v":0}]
[null,"Revenu non-salarié total moyen du trimestre",null,null,{"$f":"C16+E16+G16","v":0}]
[]
[null,"Calcul de la bonification sur les revenus d'activités salariée et non salariée"]
[null,null,"Non salariés",null,"Salariés",null,"Total",null,"Bonification"]
[null,"Mois 1",{"$f":"E17","v":0},null,{"$f":"K8","v":0},null,{"$f":"SUM(C21:F21)","v":0},null,{"$f":"IF(G21<570.53,0,IF(G21>=918.65,67.06,IF(AND(G21>570.53,G21<918.65),((G21-570.53)/(918.65-570.53))*67.06,0)))","v":0}]
[null,"Mois 2",{"$f":"E17","v":0},null,{"$f":"K9","v":0},null,{"$f":"SUM(C22:F22)","v":0},null,{"$f":"IF(G22<570.53,0,IF(G22>=918.65,67.06,IF(AND(G22>570.53,G22<918.65),((G22-570.53)/(918.65-570.53))*67.06,0)))","v":0}]
[null,"Mois 3",{"$f":"E17","v":0},null,{"$f":"K10","v":0},null,0,null,0]
[]
[null,"© UPSME - Juin 2016"]

{"sheet":"Calcul Prime activité","index":3,"n_rows":24,"n_cols":8,"rows_kept":24,"cut":false,"hidden":false,"merged":[[1,2,1,7],[1,1,3,1],[2,2,2,3],[2,4,2,5],[2,6,2,7],[21,1,21,7],[16,1,17,1],[18,2,18,7],[19,2,19,7],[18,1,19,1]]}
[]
[null,"Eléments financiers ","Simulation prime d'activité - spécial micro-entrepreneur"]
[null,null,"Mois 1",null,"Mois 2",null,"Mois 3"]
[null,null,"Etape A","Etape B","Etape A","Etape B","Etape A","Etape B"]
[null,"Montant forfaitaire",{"$f":"'Situation familiale'!K11","v":524.67999999999995},{"$f":"C5","v":524.67999999999995},{"$f":"'Situation familiale'!K11","v":524.67999999999995},{"$f":"E5","v":524.67999999999995},{"$f":"'Situation familiale'!K11","v":524.67999999999995},{"$f":"G5","v":524.67999999999995}]
[null,"Revenus professionnels (62%)",{"$f":"C11*62%","v":0},null,{"$f":"E11*62%","v":0},null,{"$f":"G11*62%","v":0}]
[null,"Bonification",{"$f":"'Situation professionnelle Mr'!I21+'Situation professionnelle Mme'!I21","v":0},null,{"$f":"'Situation professionnelle Mr'!I22+'Situation professionnelle Mme'!I22","v":0},null,{"$f":"'Situation professionnelle Mr'!I23+'Situation professionnelle Mme'!I23","v":0}]
[]
[null,"Total ",{"$f":"SUM(C5:C7)","v":524.67999999999995},{"$f":"SUM(D5:D7)","v":524.67999999999995},524.67999999999995,524.67999999999995,524.67999999999995,524.67999999999995]
[]
[null,"Revenus professionnels (100%)",{"$f":"'Situation professionnelle Mr'!K8+'Situation professionnelle Mme'!K8+'Situation professionnelle Mr'!E17+'Situation professionnelle Mme'!E17","v":0},{"$f":"C11","v":0},{"$f":"'Situation professionnelle Mr'!K9+'Situation professionnelle Mme'!K9+'Situation professionnelle Mme'!E17+'Situation professionnelle Mr'!E17","v":0},{"$f":"E11","v":0},{"$f":"'Situation professionnelle Mr'!K10+'Situation professionnelle Mr'!E17+'Situation professionnelle Mme'!K10+'Situation professionnelle Mme'!E17","v":0},{"$f":"G11","v":0}]
[null,"Revenus de remplacement",{"$f":"'Situation professionnelle Mr'!K13+'Situation professionnelle Mr'!N13+'Situation professionnelle Mme'!K13+'Situation professionnelle Mme'!N13+'Situation professionnelle Mr'!O9/12+'Situation professionnelle Mme'!O9/12","v":0},{"$f":"C12","v":0},{"$f":"'Situation professionnelle Mr'!K14+'Situation professionnelle Mr'!N14+'Situation professionnelle Mme'!K14+'Situation professionnelle Mme'!N14+'Situation professionnelle Mr'!O9/12+'Situation professionnelle Mme'!O9/12","v":0},{"$f":"E12","v":0},{"$f":"'Situation professionnelle Mr'!K15+'Situation professionnelle Mr'!N15+'Situation professionnelle Mme'!K15+'Situation professionnelle Mme'!N15+'Situation professionnelle Mr'!O9/12+'Situation professionnelle Mme'!O9/12","v":0},{"$f":"G12","v":0}]
[null,"Forfait logement",{"$f":"'Situation familiale'!J18","v":62.9},{"$f":"C13","v":62.9},{"$f":"C13","v":62.9},{"$f":"E13","v":62.9},{"$f":"C13","v":62.9},{"$f":"G13","v":62.9}]
[]
[null,"Total",{"$f":"SUM(C11:C13)","v":62.9},{"$f":"SUM(D11:D13)","v":62.9},62.9,62.9,62.9,62.9]
[]
[null,"Résultat mois par mois",{"$f":"C9-C15","v":461.78},{"$f":"D9-D15","v":461.78},461.78,461.78,461.78,461.78]
[null,null,"PA mois 1",{"$f":"IF(D17>0,C17-D17,IF(AND(C17<=0,D17<=0),0,C17))","v":0},"PA mois 2",{"$f":"IF(F17>0,E17-F17,IF(AND(E17<=0,F17<=0),0,E17))","v":0},"PA mois 3",{"$f":"IF(H17>0,G17-H17,IF(AND(G17<=0,H17<=0),0,G17))","v":0}]
[null,"Résultat final","Prime d'activité versée pour les trois mois suivants"]
[null,null,{"$f":"(D18+F18+H18)/3","v":0}]
[]
[null,"Nouvelle simulation ? Cliquez ici"]
[]
[null,"© UPSME - Juin 2016"]